bitfinex-derivatives/quotes_BTCF0:USTF0_20241025
["timestamp","ask_amount","ask_price","bid_price","bid_amount"]
[1729819924921,0.073604,67961.0,67956.0,0.07338217]
[1729819925421,0.15001285,67961.0,67956.0,0.07338217]
[1729819928827,0.15001285,67961.0,67958.0,0.05880049]
[1729819929324,0.15001285,67961.0,67957.0,0.05880049]
[1729819929917,0.25968205,67961.0,67950.0,0.09598886]
[1729819930131,0.25968205,67961.0,67950.0,0.02237286]
[1729819930520,0.25968205,67961.0,67952.0,0.073613]
[1729819930831,0.28290171,67961.0,67952.0,0.073613]
[1729819931219,0.35931056,67961.0,67953.0,0.073613]
[1729819931822,0.3360909,67961.0,67950.0,0.02237286]
[1729819932022,0.29090612,67961.0,67954.0,0.1528177]
[1729819932529,0.29090612,67961.0,67956.0,0.073609]
[1729819932730,0.29090612,67961.0,67957.0,0.073608]
[1729819932930,0.21449727,67961.0,67957.0,0.073608]
[1729819934226,0.29090612,67961.0,67957.0,0.073608]
[1729819934526,0.06448442,67961.0,67960.0,0.434405]
[1729819934732,0.21730212,67961.0,67960.0,0.434405]
[1729819937133,0.21730212,67961.0,67960.0,0.53711062]
[1729819937134,0.1528177,67961.0,67960.0,0.53711062]
[1729819938840,0.1528177,67961.0,67960.0,0.17631062]
[1729819939335,0.1528177,67961.0,67960.0,0.10270562]
[1729819939533,0.2264217,67961.0,67960.0,0.10270562]
[1729819940021,0.1528177,67961.0,67960.0,0.10270151]
[1729819940226,0.2264217,67961.0,67960.0,0.17618956]
[1729819942029,0.2264217,67961.0,67960.0,0.07348805]
[1729819942227,0.2264217,67961.0,67960.0,0.17626183]
[1729819942425,0.2264217,67961.0,67960.0,0.17637685]
[1729819942426,0.07640885,67961.0,67960.0,0.17637685]
[1729819942629,0.073596,67969.0,67966.0,0.073598]
[1729819942825,0.073596,67969.0,67967.0,0.045]
[1729819943134,0.073596,67969.0,67967.0,0.11848283]
[1729819943538,0.073596,67969.0,67968.0,0.07348283]
[1729819944033,0.073596,67969.0,67967.0,0.11848283]
[1729819944336,0.07640885,67973.0,67972.0,0.073592]
[1729819944634,0.07640885,67980.0,67978.0,0.073586]
[1729819945136,0.22330254,67980.0,67978.0,0.073586]
[1729819945338,0.11000835,67979.0,67978.0,0.073586]
[1729819945838,0.11000835,67979.0,67970.0,0.3608]
[1729819945839,0.07640885,67978.0,67971.0,0.073592]
[1729819946036,0.15000185,67971.0,67970.0,0.3608]
[1729819946333,0.21483264,67971.0,67970.0,0.3608]
[1729819946835,0.15000185,67971.0,67970.0,0.3608]
[1729819949439,0.2151941,67971.0,67970.0,0.3608]
[1729819951135,0.073596,67969.0,67965.0,0.0858]
[1729819951335,0.10555837,67968.0,67966.0,0.3608]
[1729819951531,0.17915537,67968.0,67966.0,0.3608]
[1729819951737,0.21519842,67968.0,67966.0,0.3608]
[1729819951929,0.21519842,67968.0,67958.0,0.3608]
[1729819951930,0.07640885,67967.0,67958.0,0.3608]
[1729819952128,0.07640885,67959.0,67958.0,0.434407]
[1729819952340,0.07640885,67959.0,67958.0,0.53683942]
[1729819953538,0.07640885,67959.0,67958.0,0.55960113]
[1729819958347,0.1528177,67959.0,67958.0,0.55960113]
[1729819958749,0.1528177,67959.0,67958.0,0.19880113]
[1729819958933,0.1528177,67959.0,67958.0,0.55960113]
[1729819960144,0.1528177,67959.0,67958.0,0.45716871]
[1729819960339,0.18146778,67959.0,67958.0,0.45716871]
[1729819960945,0.18146815,67959.0,67958.0,0.45716871]
[1729819962656,0.18146815,67959.0,67958.0,0.09636871]
[1729819962954,0.07640885,67959.0,67958.0,0.45716871]
[1729819963143,0.1528177,67962.0,67960.0,0.073605]
[1729819963343,0.02875233,67961.0,67960.0,0.073605]
[1729819966353,0.02873643,67961.0,67960.0,0.073605]
[1729819966853,0.02873643,67961.0,67958.0,0.38356171]
[1729819967157,0.073602,67964.0,67958.0,0.38356171]
[1729819967158,0.02485176,67959.0,67958.0,0.38356171]
[1729819967351,0.073602,67964.0,67958.0,0.38356171]
[1729819967352,0.073602,67964.0,67958.0,0.60854324]
[1729819967555,0.07640885,67959.0,67958.0,0.45716871]
[1729819967749,0.07640885,67959.0,67958.0,0.68205225]
[1729819967956,0.1528177,67959.0,67958.0,0.68205225]
[1729819968153,0.07640885,67959.0,67958.0,0.68205225]
[1729819968358,0.07640885,67963.0,67959.0,0.073606]
[1729819968655,0.07640885,67978.0,67961.0,0.07640885]
[1729819968656,0.07640885,67972.0,67961.0,0.07640885]
[1729819968859,0.14999185,67981.0,67975.0,0.073589]
[1729819969156,0.07640885,67979.0,67978.0,0.08823147]
[1729819969359,0.07640885,67979.0,67978.0,0.17618065]
[1729819970252,0.07640885,67979.0,67978.0,0.65803196]
[1729819971362,0.07640885,67979.0,67978.0,0.68050374]
[1729819971950,0.07640885,67979.0,67978.0,0.55945243]
[1729819974167,0.07640885,67979.0,67978.0,0.64756223]
[1729819974554,0.07640885,67979.0,67978.0,0.55150445]
[1729819974755,0.14999385,67979.0,67978.0,0.10259465]
[1729819975066,0.18752175,67979.0,67974.0,0.11809978]
[1729819975254,0.07640885,67974.0,67972.0,0.561792]
[1729819975455,0.1111129,67973.0,67972.0,0.561792]
[1729819975657,0.04517191,67973.0,67972.0,0.519692]
[1729819975859,0.18468931,67973.0,67972.0,0.38326562]
[1729819976054,0.23747234,67973.0,67972.0,0.38326562]
[1729819977361,0.23747234,67973.0,67972.0,0.02246562]
[1729819977559,0.23747234,67973.0,67968.0,0.45612]
[1729819977756,0.07640885,67969.0,67968.0,0.45612]
[1729819977957,0.18750716,67969.0,67968.0,0.45612]
[1729819978556,0.18750716,67969.0,67968.0,0.4795923]
[1729819980157,0.18750716,67969.0,67968.0,0.5531893]
[1729819980761,0.2398013,67969.0,67968.0,0.5531893]
[1729819980963,0.18701827,67969.0,67968.0,0.5531893]
[1729819981266,0.11060942,67969.0,67968.0,0.5531893]
[1729819981968,0.16339245,67969.0,67968.0,0.5531893]
[1729819983371,0.05278303,67969.0,67968.0,0.5531893]
[1729819984269,0.05278303,67969.0,67968.0,0.9945893]
[1729819984769,0.07640885,67980.0,67968.0,0.9945893]
[1729819984963,0.1528177,67980.0,67977.0,0.073586]
[1729819987363,0.07640885,67980.0,67977.0,0.073586]
[1729819988469,0.07640885,67980.0,67978.0,0.1895301]
[1729819989672,0.07640885,67980.0,67978.0,0.08807288]
[1729819989875,0.14999385,67979.0,67978.0,0.08807288]
[1729819990271,0.073585,67979.0,67978.0,0.08807288]
[1729819991663,0.14999385,67979.0,67978.0,0.08807288]
[1729819991971,0.59131385,67979.0,67978.0,0.08807288]
[1729819992275,0.14999385,67979.0,67978.0,0.08807288]
[1729819993369,0.073592,67973.0,67968.0,0.47846438]
[1729819993569,0.07640885,67969.0,67968.0,0.47846438]
[1729819994073,0.07640885,67969.0,67968.0,0.40486838]
[1729819994377,0.15000485,67969.0,67968.0,0.3608]
[1729819996970,0.15000485,67969.0,67968.0,0.40486838]
[1729819997173,0.15000485,67969.0,67968.0,0.3608]
[1729819997777,0.21540152,67969.0,67968.0,0.3608]
[1729820000676,0.21540152,67969.0,67955.0,0.07640885]
[1729820000677,0.073602,67963.0,67962.0,0.3608]
[1729820000874,0.21540752,67963.0,67962.0,0.3608]
[1729820003482,0.21540752,67963.0,67953.0,0.0472]
[1729820003483,0.073609,67957.0,67956.0,0.3608]
[1729820003683,0.13900567,67957.0,67956.0,0.3608]
[1729820004387,0.1479632,67957.0,67956.0,0.3608]
[1729820004683,0.118609,67957.0,67956.0,0.58452751]
[1729820004886,0.045,67957.0,67956.0,0.58452751]
[1729820005383,0.045,67957.0,67956.0,0.46300012]
[1729820005883,0.118609,67957.0,67956.0,0.46300012]
[1729820006083,0.118609,67957.0,67956.0,0.55113042]
[1729820006287,0.118609,67957.0,67956.0,0.46260736]
[1729820009780,0.07640885,67958.0,67956.0,0.46260736]
[1729820009984,0.07640885,67958.0,67957.0,0.10180736]
[1729820013788,0.15001585,67958.0,67957.0,0.10180736]
[1729820019492,0.07640885,67958.0,67957.0,0.1017602]
[1729820019689,0.15001585,67958.0,67957.0,0.1017602]
[1729820019887,0.073609,67957.0,67956.0,0.3608]
[1729820020083,0.10305812,67957.0,67956.0,0.3608]
[1729820024390,0.10378965,67957.0,67956.0,0.3608]
[1729820026399,0.073609,67957.0,67956.0,0.3608]
[1729820027300,0.10375304,67957.0,67956.0,0.3608]
[1729820027898,0.073609,67957.0,67956.0,0.46215676]
[1729820028398,0.073609,67957.0,67956.0,0.55028706]
[1729820030302,0.12372934,67957.0,67956.0,0.46215676]
[1729820034003,0.12372934,67957.0,67956.0,0.46231047]
[1729820034404,0.12372934,67957.0,67956.0,0.58330905]
[1729820035107,0.15394506,67957.0,67956.0,0.3608]
[1729820037312,0.18999397,67957.0,67956.0,0.3608]
[1729820038197,0.11638497,67957.0,67956.0,0.43441]
[1729820038805,0.11640945,67957.0,67956.0,0.43441]
[1729820040507,0.08036094,67957.0,67956.0,0.43441]
[1729820043115,0.05012034,67957.0,67956.0,0.65679613]
[1729820043314,0.05012034,67957.0,67956.0,0.65679622]
[1729820044013,0.12372934,67957.0,67956.0,0.58318622]
[1729820044803,0.12372934,67957.0,67956.0,0.583213]
[1729820045020,0.12372934,67957.0,67956.0,0.46226756]
[1729820049911,0.07216881,67957.0,67956.0,0.58247802]
[1729820050122,0.18927932,67957.0,67956.0,0.3608]
[1729820052919,0.19014641,67957.0,67956.0,0.3608]
[1729820057613,0.15372932,67957.0,67956.0,0.3608]
[1729820057921,0.19023284,67957.0,67956.0,0.3608]
[1729820058218,0.12228915,67957.0,67956.0,0.5809867]
[1729820063924,0.436309,67975.0,67962.0,0.073603]
[1729820064115,0.05012034,67969.0,67968.0,0.073596]
[1729820064313,0.05012034,67969.0,67968.0,0.2937827]
[1729820064511,0.05012034,67969.0,67968.0,0.29275127]
[1729820064924,0.05012034,67969.0,67968.0,0.21915527]
[1729820065125,0.08190791,67969.0,67965.0,0.0736]
[1729820065317,0.05012034,67966.0,67965.0,0.0736]
[1729820065627,0.16399326,67966.0,67965.0,0.0736]
[1729820067116,0.11884191,67966.0,67965.0,0.0736]
[1729820067316,0.16401952,67966.0,67965.0,0.0736]
[1729820068518,0.05012034,67965.0,67963.0,0.4102]
[1729820068723,0.11389918,67964.0,67963.0,0.4102]
[1729820069123,0.11389918,67964.0,67963.0,0.43130127]
[1729820071524,0.16401952,67964.0,67963.0,0.43130127]
[1729820072233,0.16402455,67964.0,67963.0,0.43130127]
[1729820072433,0.21414489,67964.0,67963.0,0.50490327]
[1729820073037,0.11390383,67964.0,67963.0,0.55502361]
[1729820073330,0.14675084,67966.0,67965.0,0.0736]
[1729820073529,0.14675084,67966.0,67965.0,0.53095685]
[1729820073736,0.14675084,67966.0,67965.0,0.97235685]
[1729820074727,0.19687118,67966.0,67965.0,0.43071617]
[1729820075534,0.19687118,67966.0,67965.0,0.29259869]
[1729820075830,0.19687118,67966.0,67965.0,0.21899869]
[1729820076433,0.05012034,67966.0,67965.0,0.21899869]
[1729820076634,0.05012034,67966.0,67965.0,0.09970241]
[1729820076834,0.05012034,67966.0,67965.0,0.21854386]
[1729820078526,0.17383968,67966.0,67965.0,0.21852327]
[1729820078726,0.12371934,67966.0,67965.0,0.18784508]
[1729820079041,0.12371934,67966.0,67965.0,0.09970241]
[1729820080129,0.05012034,67966.0,67963.0,0.02110127]
[1729820080335,0.05012034,67966.0,67962.0,0.07346313]
[1729820080336,0.12372034,67965.0,67962.0,0.07346313]
[1729820080536,0.05012034,67963.0,67962.0,0.07346313]
[1729820080737,0.05012034,67963.0,67962.0,0.17353491]
[1729820083946,0.05012034,67963.0,67962.0,0.19547656]
[1729820085241,0.05012034,67963.0,67962.0,0.12201343]
[1729820088247,0.08167696,67963.0,67962.0,0.02194165]
[1729820088442,0.05012034,67962.0,67958.0,0.434407]
[1729820088651,0.05012034,67959.0,67958.0,0.434407]
[1729820088845,0.08167696,67959.0,67958.0,0.434407]
[1729820089235,0.08167696,67959.0,67958.0,0.3608]
[1729820089440,0.15528296,67959.0,67958.0,0.3608]
[1729820089946,0.08166055,67959.0,67958.0,0.38181003]
[1729820090151,0.0816613,67959.0,67958.0,0.38181003]
[1729820091243,0.08167994,67959.0,67958.0,0.38181003]
[1729820095342,0.05012034,67959.0,67958.0,0.60136502]
[1729820100648,0.05012034,67959.0,67958.0,0.60051571]
[1729820101555,0.12372634,67959.0,67958.0,0.60051571]
[1729820102661,0.12372634,67959.0,67958.0,0.60037941]
[1729820105151,0.12372634,67959.0,67958.0,0.60053771]
[1729820107265,0.12372634,67959.0,67958.0,0.4815963]
[1729820109965,0.12372634,67959.0,67958.0,0.48185923]
[1729820110357,0.15559695,67959.0,67958.0,0.38181003]
[1729820112966,0.20571729,67959.0,67958.0,0.38181003]
[1729820113266,0.20571729,67959.0,67950.0,0.3608]
[1729820113267,0.073615,67951.0,67950.0,0.3608]
[1729820113462,0.10548561,67951.0,67950.0,0.3608]
[1729820113969,0.03187061,67951.0,67950.0,0.38193369]
[1729820114571,0.08199095,67951.0,67950.0,0.38193369]
[1729820115364,0.03187061,67951.0,67950.0,0.43205403]
[1729820115770,0.03187061,67951.0,67950.0,0.50567003]
[1729820115973,0.073608,67958.0,67950.0,0.47635403]
[1729820116176,0.03180482,67957.0,67956.0,0.46104068]
[1729820117378,0.05012034,67957.0,67956.0,0.68029747]
[1729820118271,0.12371934,67966.0,67959.0,0.073606]
[1729820118575,0.05012034,67963.0,67960.0,0.36575746]
[1729820118778,0.05012034,67963.0,67961.0,0.21921678]
[1729820118980,0.05012034,67963.0,67962.0,0.21921678]
[1729820122977,0.12372234,67963.0,67962.0,0.21921678]
[1729820123378,0.12372234,67963.0,67962.0,0.24069134]
[1729820123780,0.073602,67963.0,67962.0,0.31429434]
[1729820123976,0.17384268,67963.0,67962.0,0.31429434]
[1729820124379,0.10024068,67963.0,67962.0,0.31429434]
[1729820124573,0.0736,67966.0,67965.0,0.0736]
[1729820124879,0.05012034,67968.0,67965.0,0.21921678]
[1729820125081,0.073591,67974.0,67972.0,0.073592]
[1729820125279,0.3608,67976.0,67973.0,0.10002766]
[1729820125481,0.3608,67976.0,67974.0,0.17150934]
[1729820125482,0.11543253,67975.0,67974.0,0.17150934]
[1729820125683,0.12037714,67975.0,67974.0,0.121389]
[1729820126671,0.15621988,67975.0,67974.0,0.0478]
[1729820127478,0.12370934,67975.0,67974.0,0.0478]
[1729820132383,0.12370934,67975.0,67974.0,0.06917083]
[1729820134982,0.12370934,67975.0,67974.0,0.11319163]
[1729820135186,0.12370934,67975.0,67974.0,0.06917083]
[1729820136082,0.12370934,67975.0,67974.0,0.02137083]
[1729820136288,0.073591,67973.0,67972.0,0.0440208]
[1729820136481,0.073591,67973.0,67971.0,0.3608]
[1729820136482,0.05012034,67972.0,67971.0,0.3608]
[1729820137079,0.05012034,67972.0,67971.0,0.38235372]
[1729820138379,0.05012034,67972.0,67971.0,0.02155372]
[1729820138578,0.05012034,67972.0,67969.0,0.3608]
[1729820138779,0.12371434,67970.0,67969.0,0.3608]
[1729820138982,0.12371434,67970.0,67969.0,0.02178563]
[1729820139184,0.05012034,67969.0,67961.0,0.45576]
[1729820139494,0.0927,67971.0,67961.0,0.45576]
[1729820139495,0.05012034,67962.0,67961.0,0.45576]
[1729820140588,0.08209418,67962.0,67961.0,0.45576]
[1729820140989,0.15569718,67962.0,67961.0,0.3608]
[1729820141191,0.10557684,67962.0,67961.0,0.38205411]
[1729820141385,0.15569718,67962.0,67961.0,0.38205411]
[1729820141784,0.15555508,67962.0,67961.0,0.38205411]
[1729820141990,0.19251323,67962.0,67961.0,0.38205411]
[1729820142293,0.12372334,67962.0,67961.0,0.38205411]
[1729820144498,0.17384368,67962.0,67961.0,0.38205411]
[1729820144991,0.12372334,67962.0,67961.0,0.48229479]
[1729820148297,0.05012034,67962.0,67961.0,0.48229479]
[1729820148499,0.05012034,67967.0,67961.0,0.48229479]
[1729820148696,0.05012034,67967.0,67964.0,0.10024068]
[1729820149199,0.0939,67979.0,67966.0,0.10024068]
[1729820149388,0.073588,67976.0,67975.0,0.05012034]
[1729820149588,0.073589,67975.0,67973.0,0.05012034]
[1729820149793,0.05012034,67974.0,67973.0,0.05012034]
[1729820152297,0.073585,67979.0,67974.0,0.073589]
[1729820152605,0.12370534,67979.0,67977.0,0.10024068]
[1729820155716,0.05012034,67979.0,67977.0,0.10024068]
[1729820155920,0.05012034,67977.0,67976.0,0.073588]
[1729820156814,0.05012034,67977.0,67975.0,0.46104068]
[1729820158912,0.05012034,67977.0,67976.0,0.09934073]
[1729820159115,0.08269477,67977.0,67975.0,0.46104068]
[1729820159412,0.11556058,67976.0,67975.0,0.46104068]
[1729820160117,0.11548591,67976.0,67975.0,0.46104068]
[1729820160311,0.11548591,67976.0,67975.0,0.48122726]
[1729820161119,0.23919425,67976.0,67975.0,0.38098658]
[1729820162820,0.12370834,67976.0,67975.0,0.38098658]
[1729820169124,0.12370834,67976.0,67975.0,0.02018658]
[1729820169316,0.12370834,67976.0,67973.0,0.05878809]
[1729820169523,0.05012034,67975.0,67973.0,0.05878809]
[1729820170633,0.05012034,67975.0,67973.0,0.10890843]
[1729820171516,0.073588,67976.0,67973.0,0.05012034]
[1729820172321,0.073588,67976.0,67973.0,0.10901046]
[1729820172725,0.073588,67976.0,67974.0,0.05889012]
[1729820172926,0.05012034,67977.0,67975.0,0.05889012]
[1729820173131,0.05012034,67981.0,67976.0,0.05012034]
[1729820173425,0.05012034,67981.0,67979.0,0.04416799]
[1729820173632,0.05012034,67981.0,67980.0,0.04416799]
[1729820173825,0.05012034,67981.0,67978.0,0.073586]
[1729820174229,0.05012034,67981.0,67979.0,0.12370434]
[1729820174429,0.07358,67984.0,67980.0,0.09428568]
[1729820174620,0.07358,67984.0,67983.0,0.05012034]
[1729820174932,0.05012034,67983.0,67981.0,0.16786768]
[1729820175119,0.05012034,67983.0,67981.0,0.12370234]
[1729820175525,0.07358,67984.0,67981.0,0.16786586]
[1729820175720,0.05012034,67986.0,67983.0,0.05012034]
[1729820176033,0.073575,67988.0,67985.0,0.05012034]
[1729820176230,0.073575,67988.0,67987.0,0.05012034]
[1729820177735,0.073575,67988.0,67985.0,0.09428386]
[1729820177929,0.07358,67983.0,67979.0,0.01983642]
[1729820178129,0.05012034,67979.0,67973.0,0.3630067]
[1729820178335,0.27069221,67974.0,67973.0,0.3630067]
[1729820178533,0.073598,67967.0,67960.0,0.3608]
[1729820178735,0.10024068,67963.0,67960.0,0.3608]
[1729820178932,0.16805344,67962.0,67960.0,0.3608]
[1729820179125,0.24165744,67961.0,67960.0,0.3608]
[1729820179336,0.25295693,67961.0,67960.0,0.3608]
[1729820179534,0.33578764,67961.0,67960.0,0.3608]
[1729820179838,0.18886778,67961.0,67960.0,0.3608]
[1729820180428,0.29809449,67961.0,67960.0,0.3608]
[1729820180629,0.3357508,67961.0,67960.0,0.3608]
[1729820181340,0.18886778,67961.0,67960.0,0.3608]
[1729820185133,0.07636815,67962.0,67960.0,0.22212434]
[1729820185435,0.07636815,67962.0,67961.0,0.22212434]
[1729820185638,0.14997115,67962.0,67961.0,0.22171124]
[1729820187836,0.073605,67961.0,67958.0,0.3608]
[1729820188052,0.07636815,67962.0,67959.0,0.32351746]
[1729820188240,0.073605,67961.0,67960.0,0.35901841]
[1729820188434,0.07636815,67962.0,67960.0,0.32351746]
[1729820188634,0.07636815,67962.0,67961.0,0.22063686]
[1729820189034,0.07636815,67962.0,67961.0,0.46182764]
[1729820189342,0.07636815,67962.0,67961.0,0.22063686]
[1729820189545,0.14997115,67962.0,67961.0,0.22063686]
[1729820190242,0.14997115,67962.0,67961.0,0.46123686]
[1729820190443,0.14997115,67962.0,67961.0,0.22063686]
[1729820191234,0.14997115,67962.0,67961.0,0.35837206]
[1729820191945,0.14997115,67962.0,67961.0,0.32351872]
[1729820192254,0.14997115,67962.0,67961.0,0.22063686]
[1729820194140,0.19577115,67962.0,67961.0,0.22063686]
[1729820195641,0.073603,67962.0,67961.0,0.22063686]
[1729820197341,0.073603,67962.0,67961.0,0.21810924]
[1729820198234,0.073603,67962.0,67961.0,0.09950413]
[1729820199238,0.073603,67962.0,67961.0,0.21805018]
[1729820200145,0.43908815,67963.0,67955.0,0.01982852]
[1729820200146,0.073608,67958.0,67955.0,0.01982852]
[1729820200342,0.07636815,67956.0,67954.0,0.073612]
[1729820201347,0.07636815,67956.0,67954.0,0.09380756]
[1729820201546,0.14997815,67956.0,67954.0,0.09380756]
[1729820201854,0.07636815,67956.0,67954.0,0.02019556]
[1729820202152,0.07636815,67956.0,67952.0,0.3608]
[1729820202153,0.073613,67953.0,67952.0,0.3608]
[1729820202347,0.14998115,67953.0,67952.0,0.3608]
[1729820204850,0.07636815,67953.0,67952.0,0.3608]
[1729820205444,0.07636815,67953.0,67952.0,0.40490289]
[1729820206042,0.07636815,67953.0,67952.0,0.3608]
[1729820206043,0.1527363,67953.0,67952.0,0.3608]
[1729820208238,0.1527363,67953.0,67952.0,0.5791816]
[1729820209049,0.073612,67954.0,67952.0,0.5791816]
[1729820209252,0.073612,67954.0,67953.0,0.2183816]
[1729820209460,0.0487,67956.0,67953.0,0.2183816]
[1729820209755,0.0487,67956.0,67954.0,0.2183816]
[1729820209950,0.0487,67956.0,67955.0,0.2183816]
[1729820210945,0.12506815,67956.0,67955.0,0.2183816]
[1729820211345,0.12506815,67956.0,67955.0,0.21823414]
[1729820212254,0.09882193,67956.0,67955.0,0.21823414]
[1729820213453,0.05012193,67958.0,67955.0,0.21823414]
[1729820213653,0.05012193,67958.0,67956.0,0.21823414]
[1729820213654,0.05012193,67957.0,67956.0,0.21823414]
[1729820215153,0.05012193,67957.0,67952.0,0.434414]
[1729820215353,0.05012193,67953.0,67952.0,0.434414]
[1729820217755,0.05012193,67953.0,67952.0,0.3608]
[1729820217956,0.12373493,67953.0,67952.0,0.3608]
[1729820220160,0.12373493,67953.0,67951.0,0.3608]
[1729820220364,0.05012193,67952.0,67951.0,0.3608]
[1729820223158,0.00592624,67952.0,67951.0,0.57889131]
[1729820223360,0.07954024,67952.0,67951.0,0.57889131]
[1729820224063,0.12966217,67952.0,67951.0,0.46029595]
[1729820224964,0.17385786,67952.0,67951.0,0.46029595]
[1729820225267,0.17385786,67952.0,67951.0,0.57844651]
[1729820225469,0.17385786,67952.0,67951.0,0.57807794]
[1729820226462,0.12373593,67952.0,67951.0,0.57807794]
[1729820228059,0.073614,67952.0,67951.0,0.57807794]
[1729820228259,0.12373593,67952.0,67951.0,0.57807794]
[1729820229767,0.12373593,67952.0,67951.0,0.45992488]
[1729820230073,0.17385786,67952.0,67951.0,0.45992488]
[1729820230471,0.2064353,67952.0,67951.0,0.3608]
[1729820230859,0.15631337,67952.0,67951.0,0.3608]
[1729820231367,0.15631312,67952.0,67951.0,0.3608]
[1729820231573,0.20643505,67952.0,67951.0,0.3608]
[1729820232466,0.10619119,67952.0,67951.0,0.3608]
[1729820232666,0.15631312,67952.0,67951.0,0.3608]
[1729820233075,0.20643505,67952.0,67951.0,0.3608]
[1729820233274,0.15631312,67952.0,67951.0,0.3608]
[1729820233464,0.20643505,67952.0,67951.0,0.3608]
[1729820233864,0.20643505,67952.0,67949.0,0.00220678]
[1729820234060,0.073616,67950.0,67949.0,0.00220678]
[1729820234269,0.19412919,67950.0,67949.0,0.00220678]
[1729820234466,0.19412919,67950.0,67934.0,0.3608]
[1729820234672,0.17387586,67935.0,67934.0,0.3608]
[1729820234867,0.18294298,67935.0,67930.0,0.11609483]
[1729820235069,0.12375893,67931.0,67930.0,0.11609483]
[1729820235266,0.15633612,67931.0,67930.0,0.11609483]
[1729820236071,0.12375893,67931.0,67930.0,0.11609483]
[1729820236369,0.15004251,67931.0,67930.0,0.11609483]
[1729820236673,0.15004251,67931.0,67930.0,0.0956]
[1729820237072,0.18149924,67931.0,67930.0,0.0956]
[1729820237571,0.18149924,67931.0,67930.0,0.10013824]
[1729820237572,0.07640551,67931.0,67930.0,0.10013824]
[1729820238079,0.15004251,67931.0,67930.0,0.10013824]
[1729820238373,0.15004251,67931.0,67930.0,0.1735391]
[1729820238561,0.15004251,67931.0,67930.0,0.07340086]
[1729820239373,0.073639,67929.0,67928.0,0.07340086]
[1729820239677,0.15004451,67929.0,67928.0,0.17297473]
[1729820240180,0.15004551,67928.0,67926.0,0.07340086]
[1729820240477,0.15004751,67926.0,67925.0,0.07340086]
[1729820240666,0.15004751,67926.0,67925.0,0.17295244]
[1729820241171,0.15281102,67925.0,67920.0,0.09032869]
[1729820241363,0.3608,67921.0,67915.0,0.08812052]
[1729820241670,0.07640551,67915.0,67914.0,0.08812052]
[1729820241862,0.15005951,67915.0,67914.0,0.08812052]
[1729820242065,0.073657,67912.0,67907.0,0.3608]
[1729820242264,0.07640551,67914.0,67907.0,0.1079717]
[1729820242265,0.07640551,67908.0,67907.0,0.1079717]
[1729820242566,0.15281102,67908.0,67907.0,0.01998023]
[1729820242772,0.15281102,67908.0,67905.0,0.00220907]
[1729820242773,0.07640551,67908.0,67905.0,0.00220907]
[1729820243166,0.07640551,67907.0,67905.0,0.00220907]
[1729820243367,0.07640551,67908.0,67905.0,0.00220907]
[1729820243574,0.07640551,67908.0,67907.0,0.05858143]
[1729820243980,0.15281102,67912.0,67907.0,0.21139245]
[1729820244275,0.3608,67920.0,67911.0,0.48114152]
[1729820244477,0.3608,67920.0,67915.0,0.07640551]
[1729820244681,0.3608,67920.0,67916.0,0.0961]
[1729820244682,0.434449,67920.0,67916.0,0.0961]
[1729820245370,0.00220918,67922.0,67921.0,0.073648]
[1729820245570,0.00220918,67922.0,67919.0,0.12034152]
[1729820245770,0.00220918,67922.0,67918.0,0.13498686]
[1729820245975,0.00220918,67922.0,67920.0,0.073649]
[1729820246981,0.00220918,67922.0,67918.0,0.13498686]
[1729820247179,0.00220918,67922.0,67920.0,0.073649]
[1729820251486,0.00220918,67922.0,67919.0,0.13498686]
[1729820251684,0.07585618,67922.0,67919.0,0.05858135]
[1729820252082,0.07585618,67922.0,67921.0,0.0439135]
[1729820252587,0.07585618,67922.0,67919.0,0.05858135]
[1729820252985,0.07640551,67920.0,67919.0,0.05858135]
[1729820253185,0.15005451,67920.0,67919.0,0.05858135]
[1729820253485,0.15005451,67920.0,67917.0,0.3608]
[1729820253486,0.22646002,67920.0,67917.0,0.3608]
[1729820253890,0.22646002,67920.0,67917.0,0.38278649]
[1729820254086,0.15005451,67920.0,67917.0,0.098392]
[1729820254291,0.073649,67920.0,67917.0,0.098392]
[1729820255082,0.073649,67920.0,67918.0,0.3608]
[1729820255990,0.15005451,67920.0,67918.0,0.3608]
[1729820256382,0.00220918,67922.0,67918.0,0.51361102]
[1729820256582,0.00220918,67922.0,67918.0,0.58726202]
[1729820258593,0.00220918,67922.0,67918.0,0.51361102]
[1729820258792,0.073649,67920.0,67918.0,0.51361102]
[1729820259493,0.073649,67920.0,67918.0,0.3608]
[1729820260386,0.073649,67920.0,67919.0,0.09754174]
[1729820260387,0.15005451,67920.0,67919.0,0.09754174]
[1729820260789,0.07640551,67920.0,67918.0,0.3608]
[1729820260989,0.07365,67919.0,67918.0,0.3608]
[1729820261185,0.07365,67919.0,67918.0,0.45825512]
[1729820261692,0.51085551,67919.0,67918.0,0.09745512]
[1729820261898,0.15281102,67918.0,67916.0,0.0586973]
[1729820262083,0.57596551,67919.0,67915.0,0.0586973]
[1729820262084,0.073653,67916.0,67915.0,0.0586973]
[1729820262287,0.073653,67916.0,67907.0,0.08799147]
[1729820262288,0.15005951,67915.0,67914.0,0.0586973]
[1729820262499,0.15005951,67915.0,67904.0,0.3608]
[1729820262500,0.073657,67913.0,67908.0,0.08799147]
[1729820262694,0.073657,67913.0,67909.0,0.09754982]
[1729820262900,0.07640551,67911.0,67910.0,0.09754982]
[1729820263194,0.15281102,67911.0,67910.0,0.09754982]
[1729820263388,0.22646902,67911.0,67910.0,0.18554129]
[1729820263700,0.24757102,67914.0,67910.0,0.18560099]
[1729820263888,0.15281102,67914.0,67911.0,0.09760952]
[1729820264089,0.15281102,67914.0,67912.0,0.17126652]
[1729820264290,0.07640551,67914.0,67913.0,0.09760952]
[1729820264492,0.09668,67919.0,67917.0,0.073652]
[1729820264696,0.17116551,67919.0,67918.0,0.09760952]
[1729820264896,0.07640551,67919.0,67918.0,0.09760952]
[1729820266002,0.00220918,67922.0,67919.0,0.07365]
[1729820266204,0.00220918,67922.0,67920.0,0.09760952]
[1729820266500,0.00220918,67922.0,67921.0,0.09760952]
[1729820267598,0.07640551,67921.0,67919.0,0.07365]
[1729820267803,0.0346965,67920.0,67919.0,0.07365]
[1729820268298,0.03469566,67920.0,67919.0,0.07365]
[1729820272198,0.10834466,67920.0,67915.0,0.07640551]
[1729820272398,0.03469566,67919.0,67915.0,0.07640551]
[1729820272603,0.073649,67920.0,67915.0,0.15005951]
[1729820272807,0.03469851,67919.0,67917.0,0.073652]
[1729820273102,0.00220918,67922.0,67918.0,0.07640551]
[1729820273310,0.00220918,67922.0,67921.0,0.15281102]
[1729820273494,0.00220918,67922.0,67921.0,0.22645902]
[1729820274906,0.00220918,67922.0,67921.0,0.58725902]
[1729820275508,0.00220918,67922.0,67921.0,1.05033641]
[1729820275705,0.00220918,67922.0,67921.0,1.35826403]
[1729820276612,0.00220918,67922.0,67921.0,0.91658403]